bitfinex-derivatives/quotes_ETHF0:USTF0_20250730
["timestamp","ask_amount","ask_price","bid_price","bid_amount"]
[1753891915653,0.5909,3782.7,3782.6,19.81314]
[1753891915852,2.4898,3782.7,3782.6,20.92924]
[1753891916047,2.0317,3782.7,3782.6,20.92924]
[1753891917058,1.2983,3782.7,3782.6,20.92924]
[1753891917355,1.2983,3782.7,3782.6,2.64124]
[1753891917551,2.0317,3782.7,3782.6,20.92924]
[1753891917752,2.4898,3782.7,3782.6,20.92924]
[1753891918155,2.4898,3782.7,3782.6,2.64124]
[1753891918349,2.0317,3782.7,3782.6,20.92924]
[1753891918854,2.594,3783.0,3782.9,1.2512]
[1753891919062,2.594,3783.4,3783.3,2.03444]
[1753891919260,2.594,3783.4,3783.3,2.80054]
[1753891920260,2.1158,3783.4,3783.3,2.80054]
[1753891920453,1.5743,3783.7,3783.6,0.5286]
[1753891920660,1.8066,3783.7,3783.6,2.8005]
[1753891920865,2.594,3783.7,3783.6,2.8005]
[1753891921062,2.1158,3783.7,3783.6,2.8005]
[1753891921464,3.2078,3783.9,3783.8,2.03537]
[1753891921666,3.8304,3783.9,3783.8,2.80047]
[1753891921862,5.85217,3783.9,3783.7,0.52858]
[1753891922164,2.594,3783.8,3783.7,1.15098]
[1753891922369,2.594,3783.8,3783.7,2.80048]
[1753891923658,1.0197,3784.1,3784.0,0.52853]
[1753891923867,1.81099666,3784.1,3784.0,1.15093]
[1753891924167,0.79129666,3784.1,3784.0,2.80043]
[1753891925061,1.41389666,3784.1,3784.0,2.80043]
[1753891925265,1.3331,3784.1,3784.0,2.80043]
[1753891925461,1.8066,3784.1,3784.0,2.80043]
[1753891925665,2.594,3784.1,3784.0,1.1027]
[1753891925965,3.38617839,3784.1,3784.0,1.1027]
[1753891926161,2.594,3784.1,3784.0,1.5058]
[1753891926466,3.06152214,3784.7,3784.6,1.0255]
[1753891926667,2.90804442,3784.7,3784.6,1.0255]
[1753891926856,3.38624442,3784.7,3784.6,2.80036]
[1753891927956,0.79224442,3784.7,3784.6,7.80036]
[1753891928157,0.6226,3785.6,3785.1,2.80029]
[1753891928158,0.94572214,3785.2,3785.1,2.80029]
[1753891928364,2.594,3785.2,3785.1,0.303]
[1753891928665,1.0197,3785.2,3785.0,18.81339]
[1753891928865,3.54024356,3785.1,3785.0,1.55389]
[1753891929069,2.594,3785.1,3785.0,2.80029]
[1753891929869,1.56884356,3785.3,3785.2,1.15078]
[1753891930161,0.94624356,3785.3,3785.2,2.80028]
[1753891930368,0.94624356,3785.3,3785.2,6.00808]
[1753891930668,1.3929,3785.3,3785.2,5.24298]
[1753891930869,2.594,3785.3,3785.2,2.03518]
[1753891931163,2.594,3785.3,3785.2,19.83688]
[1753891931560,2.594,3785.3,3785.2,18.283]
[1753891931765,2.594,3785.0,3784.8,3.73623]
[1753891932066,2.594,3784.9,3784.8,0.52843]
[1753891932466,2.594,3784.9,3784.8,0.83143]
[1753891932767,2.594,3784.9,3784.8,1.15083]
[1753891932971,2.594,3784.9,3784.8,1.63113]
[1753891933664,2.594,3784.9,3784.8,2.80033]
[1753891933865,2.594,3785.2,3785.1,2.03418]
[1753891935066,2.594,3785.2,3785.1,1.63108]
[1753891936765,2.594,3785.2,3785.1,1.1027]
[1753891936974,3.12239,3785.2,3785.0,0.5284]
[1753891937169,1.5743,3785.1,3785.0,0.5284]
[1753891937364,2.594,3785.1,3785.0,0.5284]
[1753891939068,2.594,3784.7,3784.6,0.52846]
[1753891939666,1.0961,3784.6,3784.5,0.52847]
[1753891939870,2.594,3783.8,3783.7,1.00889]
[1753891940168,2.594,3783.6,3783.5,0.83161]
[1753891940771,2.594,3783.6,3783.5,1.63131]
[1753891941869,0.52864,3783.4,3783.2,0.52865]
[1753891942073,1.0197,3783.2,3783.0,18.80768]
[1753891942264,2.594,3783.1,3783.0,20.31348]
[1753891942464,2.594,3783.1,3783.0,21.07958]
[1753891946075,5.8018,3783.1,3783.0,1.1027]
[1753891946871,5.0144,3783.1,3783.0,2.264]
[1753891947070,5.3236,3783.1,3783.0,2.264]
[1753891947272,5.8018,3783.1,3783.0,2.264]
[1753891948076,3.12264,3783.4,3783.3,1.5058]
[1753891948277,3.12264,3783.4,3783.3,0.303]
[1753891948574,2.5263,3783.2,3783.1,1.13158]
[1753891948768,2.5263,3783.2,3783.1,1.97358]
[1753891948974,1.3083,3783.2,3783.1,2.71378]
[1753891949169,2.0659,3783.2,3783.1,2.71378]
[1753891949369,2.5228,3783.2,3783.1,1.97358]
[1753891949770,2.5228,3783.2,3783.1,2.71378]
[1753891950378,2.5228,3783.2,3783.1,1.97358]
[1753891950574,3.2078,3784.3,3783.1,2.71378]
[1753891950767,0.4519,3783.9,3783.8,0.52858]
[1753891950970,2.0941,3783.9,3783.8,2.72128]
[1753891951175,1.3365,3783.9,3783.8,2.72128]
[1753891952081,1.7884,3783.9,3783.8,2.72128]
[1753891952977,2.551,3783.9,3783.8,1.98108]
[1753891953472,2.551,3783.9,3783.8,2.72128]
[1753891954075,2.551,3783.9,3783.8,1.98108]
[1753891954974,3.2078,3784.5,3784.2,0.52852]
[1753891954975,1.1956,3784.3,3784.2,0.52852]
[1753891955181,1.2172,3784.3,3784.2,2.72122]
[1753891955374,5.7588,3784.5,3784.4,2.7212]
[1753891955672,6.54754011,3784.5,3784.4,1.0559]
[1753891955876,5.7588,3784.5,3784.4,1.0559]
[1753891956069,2.551,3784.8,3784.7,1.22495]
[1753891956272,3.33965293,3784.8,3784.7,2.44805]
[1753891956477,2.88275293,3784.8,3784.7,2.72115]
[1753891956874,3.33965293,3784.8,3784.7,2.72115]
[1753891957074,1.0444,3784.6,3784.5,0.52848]
[1753891957278,1.0444,3784.6,3783.8,1.76683]
[1753891957279,2.551,3784.5,3784.4,0.52849]
[1753891958781,2.551,3784.5,3784.4,1.98099]
[1753891959377,2.551,3784.5,3784.4,1.58439]
[1753891959681,2.551,3784.5,3784.4,0.52849]
[1753891960884,2.551,3784.5,3784.4,0.83909]
[1753891961084,2.551,3784.5,3784.4,1.58439]
[1753891962384,2.551,3784.5,3784.4,1.98099]
[1753891962581,2.551,3784.5,3784.4,2.72119]
[1753891963082,1.0444,3785.0,3784.9,1.7256]
[1753891963381,1.82959271,3785.0,3784.9,1.58433]
[1753891963578,0.5978,3784.8,3784.3,1.32128]
[1753891963782,1.0444,3784.6,3784.4,0.52849]
[1753891964182,1.0444,3784.6,3784.5,1.4525]
[1753891964380,2.551,3784.6,3784.5,0.3106]
[1753891964578,1.5066,3784.5,3784.4,0.52849]
[1753891964778,2.551,3784.4,3784.3,0.5285]
[1753891965780,3.07951,3784.3,3784.2,0.52852]
[1753891966487,2.551,3784.3,3784.2,0.52852]
[1753891966881,2.551,3784.3,3784.2,1.13902]
[1753891967098,2.0941,3784.6,3784.5,1.13897]
[1753891967387,2.551,3784.6,3784.5,1.4525]
[1753891967784,2.551,3784.6,3784.5,1.7256]
[1753891968079,2.551,3784.6,3784.5,2.1927]
[1753891968080,2.0941,3784.6,3784.5,2.1927]
[1753891968282,1.0713,3785.0,3784.9,1.4742]
[1753891968484,1.6691,3785.0,3784.9,1.53551]
[1753891968878,3.2078,3785.5,3785.4,0.52836]
[1753891969080,3.2078,3785.5,3785.4,2.44796]
[1753891969277,3.2078,3785.5,3785.4,2.72106]
[1753891972782,0.2,3785.9,3785.8,2.721]
[1753891972987,0.2,3785.9,3785.8,5.9288]
[1753891975198,1.6747,3785.9,3785.8,5.9288]
[1753891975696,1.9884,3785.9,3785.8,5.9288]
[1753891975885,2.2941,3785.9,3785.8,5.9288]
[1753891976285,2.751,3785.9,3785.8,20.996]
[1753891976985,2.751,3785.9,3785.8,24.2038]
[1753891976986,1.5365,3785.9,3785.8,24.2038]
[1753891977186,0.2,3785.9,3785.8,24.2038]
[1753891978092,0.018,3786.3,3786.2,2.72094]
[1753891978683,0.018,3786.3,3786.2,5.92874]
[1753891978891,0.6057,3787.3,3787.2,2.6673]
[1753891979096,0.17309353,3787.3,3787.2,5.8751]
[1753891980683,0.77879353,3787.3,3787.2,5.8751]
[1753891980888,0.77879353,3787.3,3787.2,18.27]
[1753891980889,2.94470527,3787.3,3787.2,18.27]
[1753891981092,2.68929353,3787.3,3787.2,18.27]
[1753891981383,2.68929353,3787.3,3787.2,19.3189]
[1753891982392,2.68929353,3787.3,3787.2,18.27]
[1753891983195,2.68929353,3787.3,3787.2,18.8655]
[1753891983395,2.22949353,3787.3,3787.2,20.4092]
[1753891983594,0.77879353,3787.3,3787.2,20.4092]
[1753891983794,1.23219353,3787.3,3787.2,20.4092]
[1753891984092,1.91529353,3787.3,3787.2,20.4092]
[1753891984292,2.5162,3787.3,3787.2,20.4072]
[1753891984797,2.5162,3787.3,3787.2,18.5703]
[1753891984999,2.5162,3787.3,3787.2,0.3023]
[1753891985199,1.17028823,3787.3,3787.1,0.52811]
[1753891985392,0.9973,3787.3,3787.2,18.267]
[1753891985790,2.5162,3787.2,3787.1,1.12361]
[1753891985987,2.5162,3787.2,3787.1,19.39061]
[1753891986195,2.5162,3787.4,3787.3,0.9889]
[1753891986393,2.5162,3787.4,3787.3,0.5955]
[1753891986597,3.04428,3787.4,3787.3,0.3023]
[1753891986902,2.5162,3787.3,3787.2,0.5281]
[1753891987397,2.1259,3787.3,3787.2,1.1236]
[1753891987703,2.0564,3787.3,3787.2,5.8751]
[1753891988104,1.0604,3787.3,3787.2,5.8751]
[1753891988301,2.5162,3787.6,3787.5,2.66726]
[1753891988502,2.5162,3787.6,3787.5,20.93326]
[1753891988702,2.5162,3787.6,3787.5,20.28916]
[1753891989305,2.0564,3787.6,3787.5,20.93326]
[1753891989607,2.2564,3787.9,3787.8,2.66722]
[1753891989814,2.7162,3787.9,3787.8,18.79302]
[1753891990006,3.49622211,3787.9,3787.8,18.79302]
[1753891990202,2.7162,3787.9,3787.8,18.79302]
[1753891990515,3.49635023,3787.9,3787.8,18.79302]
[1753891991309,2.2564,3787.9,3787.8,20.93222]
[1753891991704,2.7162,3787.9,3787.8,18.79202]
[1753891991908,3.49647558,3787.9,3787.8,18.79202]
[1753891992103,3.49647558,3787.9,3787.8,19.09232]
[1753891992309,3.49647558,3787.9,3787.8,0.3023]
[1753891992517,2.5162,3787.0,3786.9,0.3023]
[1753891992715,2.5162,3787.0,3786.8,0.52815]
[1753891992716,2.5162,3786.9,3786.8,0.52815]
[1753891993014,2.5162,3786.9,3786.8,1.57705]
[1753891993206,2.5162,3786.9,3786.8,1.97045]
[1753891993515,1.603,3787.1,3787.0,2.66733]
[1753891993812,1.0591,3787.3,3787.2,1.517]
[1753891994007,3.2078,3787.4,3787.2,1.517]
[1753891994207,3.2078,3787.4,3787.3,2.1392]
[1753891994411,0.4534,3787.8,3787.4,0.52808]
[1753891994615,2.0564,3787.8,3787.7,2.66724]
[1753891994817,0.996,3787.8,3787.7,2.66724]
[1753891995016,0.6057,3787.8,3787.7,2.66724]
[1753891995317,0.2,3787.9,3787.8,2.1392]
[1753891995514,2.2564,3787.9,3787.8,2.1392]
[1753891995717,2.7162,3787.9,3787.8,18.8575]
[1753891996214,2.7162,3787.9,3787.8,1.0489]
[1753891996415,2.7162,3787.9,3787.8,19.3099]
[1753891996810,2.7162,3787.9,3787.8,19.7033]
[1753891997011,2.7162,3787.9,3787.8,2.1392]
[1753891997216,2.7162,3787.9,3787.8,19.7033]
[1753891998011,2.2564,3787.9,3787.8,20.4002]
[1753891998207,0.8057,3787.9,3787.8,20.4002]
[1753891999220,0.2,3787.9,3787.8,20.4002]
[1753892000412,0.2,3787.9,3787.8,20.3992]
[1753892001120,1.6494,3787.9,3787.8,20.3992]
[1753892001312,2.2564,3787.9,3787.8,20.3992]
[1753892001518,2.7162,3787.9,3787.8,18.258]
[1753892002115,1.4888,3787.9,3787.8,19.7003]
[1753892002319,1.4888,3787.9,3787.8,20.3972]
[1753892002618,2.7162,3787.9,3787.8,20.3972]
[1753892002819,3.24421,3787.9,3787.8,19.7003]
[1753892003119,2.7162,3787.9,3787.8,19.7003]
[1753892003618,2.7162,3787.9,3787.8,20.3972]
[1753892004022,0.2,3787.9,3787.8,20.3972]
[1753892004521,2.7162,3787.9,3787.8,20.3972]
[1753892004725,2.7162,3787.9,3787.8,20.3962]
[1753892004922,1.4888,3787.9,3787.8,20.3962]
[1753892005220,1.196,3787.9,3787.8,20.3962]
[1753892005723,0.5903,3787.9,3787.8,2.1392]
[1753892005922,1.196,3787.9,3787.8,20.3962]
[1753892006313,1.196,3787.9,3787.8,2.1392]
[1753892006519,0.2,3787.9,3787.8,20.3962]
[1753892006715,1.803,3787.9,3787.8,2.1392]
[1753892006911,1.1973,3787.9,3787.8,18.257]
[1753892007123,2.5162,3787.8,3787.7,1.12353]
[1753892007317,2.5162,3787.8,3787.7,19.38053]
[1753892007819,2.5162,3787.8,3787.7,18.8525]
[1753892008122,2.5162,3787.8,3787.7,0.5955]
[1753892008322,2.5162,3787.8,3787.7,18.8515]
[1753892008721,2.5162,3787.8,3787.7,19.3144]
[1753892008919,2.0564,3787.8,3787.7,20.4099]
[1753892009125,0.2,3787.9,3787.8,1.49352]
[1753892009325,0.2,3787.9,3787.8,2.65852]
[1753892010420,2.392,3787.9,3787.7,0.52803]
[1753892010727,2.6809,3787.9,3787.8,18.256]
[1753892011023,2.6809,3787.9,3787.8,19.3136]
[1753892011225,0.2,3787.9,3787.8,20.3827]
[1753892012014,2.4809,3787.8,3787.7,0.52803]
[1753892012319,2.4809,3787.8,3787.7,18.78303]
[1753892012722,2.4809,3787.8,3787.7,19.07283]
[1753892012923,2.4809,3787.8,3787.7,19.84063]
[1753892013131,2.4809,3787.8,3787.7,20.20903]
[1753892013428,2.4809,3787.8,3787.7,20.90973]
[1753892014018,0.2,3787.9,3787.7,20.90973]
[1753892014223,0.2,3787.9,3787.8,2.1267]
[1753892014424,1.2182,3787.9,3787.8,2.1267]
[1753892014626,0.613,3787.9,3787.8,2.1267]
[1753892014820,0.2,3787.9,3787.8,2.1267]
[1753892015830,2.4809,3788.8,3788.7,1.0576]
[1753892016025,2.4809,3788.8,3788.7,2.65459]
[1753892016419,0.018,3789.3,3788.7,2.1267]
[1753892016720,1.2182,3789.9,3789.8,1.95374]
[1753892017031,0.2,3789.9,3789.8,20.90844]
[1753892017933,2.6809,3789.9,3789.8,19.83834]
[1753892018834,2.6809,3789.9,3789.8,18.8447]
[1753892020030,2.6809,3789.9,3789.8,19.37244]
[1753892020427,2.6809,3789.9,3789.8,18.8447]
[1753892020928,2.6809,3789.9,3789.8,18.25]
[1753892021329,2.6809,3789.9,3789.8,18.8447]
[1753892021533,2.6809,3789.9,3789.8,19.3076]
[1753892021734,0.2,3789.9,3789.8,19.676]
[1753892021936,1.9467,3789.9,3789.8,20.3767]
[1753892022129,2.6809,3789.9,3789.8,20.3767]
[1753892022933,0.2,3789.9,3789.8,19.676]
[1753892023130,2.6809,3789.9,3789.8,20.3767]
[1753892023328,0.2,3789.9,3789.8,20.3767]
[1753892023530,5.6887,3790.6,3790.5,1.95365]
[1753892023831,5.6887,3790.6,3790.5,20.90135]
[1753892024134,2.4809,3790.6,3790.5,20.90135]
[1753892024527,2.4809,3790.6,3790.5,20.3737]
[1753892025432,2.0356,3790.6,3790.5,20.3737]
[1753892025834,0.52756,3791.2,3791.0,0.52758]
[1753892026041,2.4809,3791.1,3791.0,19.83018]
[1753892026336,2.4809,3791.1,3791.0,19.3026]
[1753892026528,1.449,3791.1,3791.0,19.3026]
[1753892026733,0.52756,3791.2,3791.0,20.3717]
[1753892026932,2.4809,3791.5,3791.4,0.52751]
[1753892027228,2.4809,3791.5,3791.4,19.83011]
[1753892028535,6.21617,3791.8,3791.7,0.5947]
[1753892028937,6.21617,3791.8,3791.6,18.77249]
[1753892029135,1.4813,3791.7,3791.6,18.77249]
[1753892029433,2.4809,3791.7,3791.6,0.52749]
[1753892029636,2.4809,3791.7,3791.6,18.77049]
[1753892030034,2.4809,3791.7,3791.6,20.89719]
[1753892030437,2.4809,3791.7,3791.6,20.19649]
[1753892031133,2.2356,3791.9,3791.8,1.12216]
[1753892031337,2.6809,3791.9,3791.8,2.65416]
[1753892032438,2.6809,3791.9,3791.8,1.95346]
[1753892032635,2.6809,3791.9,3791.8,1.58506]
[1753892033033,2.6809,3791.9,3791.8,1.95346]
[1753892033435,2.6809,3791.9,3791.8,2.65416]
[1753892033646,0.2,3791.9,3791.8,2.65416]
[1753892033846,0.2,3791.9,3791.8,2.64828741]
[1753892035743,0.018,3792.3,3792.2,2.65411]
[1753892036042,0.018,3792.3,3792.2,24.09891]
[1753892037438,2.0356,3792.7,3792.6,1.49045]
[1753892037743,2.0356,3792.7,3792.6,20.89105]
[1753892038742,2.4665,3792.9,3792.8,2.55103]
[1753892038943,1.0333,3792.9,3792.8,2.55103]
[1753892039140,2.0212,3792.9,3792.8,2.55103]
[1753892039544,2.4557,3793.3,3793.2,0.52726]
[1753892039739,2.4557,3793.3,3793.2,19.04476]
[1753892039934,2.4557,3793.3,3793.2,19.77566]
[1753892040137,1.8477,3793.7,3793.6,0.8107]
[1753892040343,2.4557,3793.7,3793.6,2.332]
[1753892040538,2.4557,3793.7,3793.6,2.5509]
[1753892040733,1.0333,3793.7,3793.6,2.5509]
[1753892040939,2.2212,3793.9,3793.8,2.55089]
[1753892041140,2.6557,3793.9,3793.8,20.78189]
[1753892041842,1.2333,3793.9,3793.8,20.12289]
[1753892042045,2.6557,3793.9,3793.8,20.12289]
[1753892042440,1.1879,3793.9,3793.8,20.78189]
[1753892042644,1.927,3793.9,3793.8,20.78189]
[1753892042841,3.2078,3794.9,3794.5,0.52709]
[1753892043044,2.4557,3794.7,3794.6,18.228]
[1753892043343,3.2258,3795.3,3794.2,3.6303]
[1753892043344,2.4557,3794.3,3794.2,3.2078]
[1753892043537,2.4557,3794.1,3794.0,18.228]
[1753892044347,2.4557,3794.0,3793.9,0.52716]
[1753892044547,2.4557,3794.0,3793.9,18.75516]
[1753892045242,2.4557,3794.0,3793.9,18.228]
[1753892045447,2.0212,3794.0,3793.9,18.228]
[1753892045648,2.4557,3794.0,3793.9,18.228]
[1753892046147,2.4557,3794.0,3793.9,18.227]
[1753892046347,2.4557,3794.0,3793.9,18.5105]
[1753892047440,2.4557,3794.0,3793.9,18.8189]
[1753892047644,2.4557,3794.0,3793.9,20.2507]
[1753892048048,1.4678,3794.0,3793.9,20.2507]
[1753892048247,2.4557,3794.0,3793.9,20.2507]
[1753892048948,3.2078,3794.5,3794.0,1.5368]
[1753892049147,1.4132,3794.6,3794.5,2.55079]
[1753892049349,1.0333,3794.6,3794.5,20.77479]
[1753892049549,2.0212,3794.6,3794.5,20.77479]
[1753892049748,2.4557,3794.6,3794.5,20.77479]
[1753892050546,2.4557,3794.6,3794.5,20.55589]
[1753892050845,2.4557,3794.6,3794.5,18.74909]
[1753892051152,2.4557,3794.6,3794.5,19.03259]
[1753892051351,2.4557,3794.6,3794.5,19.34099]
[1753892052347,2.0075,3794.0,3793.9,2.11077]
[1753892052547,2.4557,3794.0,3793.9,1.98167]
[1753892052747,2.4557,3794.0,3793.9,0.52717]
[1753892052951,2.4557,3794.0,3793.9,18.74617]
[1753892053651,2.4557,3794.0,3793.9,19.02967]
[1753892054041,2.4557,3794.0,3793.9,19.33807]
[1753892054250,2.4557,3794.0,3793.9,19.76057]
[1753892055356,2.4557,3794.0,3793.9,19.33807]
[1753892056147,2.26518405,3795.1,3795.0,0.52702]
[1753892056148,0.94763405,3795.1,3795.0,0.52702]
[1753892056353,0.018,3795.3,3795.2,1.53179]
[1753892056652,0.77548184,3795.3,3795.2,2.78689]
[1753892057653,3.23118184,3795.3,3795.2,2.78689]
[1753892058757,3.23118184,3795.3,3795.2,21.00489]
[1753892059150,2.78298184,3795.3,3795.2,21.00489]
[1753892059354,0.018,3795.3,3795.2,21.00489]
[1753892059753,1.591,3795.3,3795.2,21.00489]
[1753892059957,1.4907,3795.2,3795.0,3.2078]
[1753892060157,1.4907,3795.2,3794.6,2.34688]
[1753892060158,2.4557,3794.7,3794.6,2.34688]
[1753892060354,2.4557,3794.7,3794.6,20.56188]
[1753892060556,2.4557,3794.7,3794.6,21.00198]
[1753892061059,2.4557,3794.7,3794.6,0.52708]
[1753892061254,0.018,3795.3,3794.1,39.70335]
[1753892061255,0.965,3794.3,3794.2,0.52712]
[1753892061560,1.4132,3794.2,3794.0,0.52716]
[1753892061755,2.4557,3793.8,3793.7,3.2078]
[1753892061960,2.4557,3793.8,3793.7,21.949]
[1753892062161,2.9829,3793.8,3793.5,0.52723]
[1753892062363,2.4557,3793.7,3793.6,18.217]
[1753892062666,2.4557,3793.4,3793.3,0.52726]
[1753892062963,2.4557,3793.4,3793.3,18.74426]
[1753892063458,0.608,3793.3,3793.2,0.52727]
[1753892063663,2.4557,3793.3,3793.2,0.52727]
[1753892063864,2.4557,3793.3,3793.2,18.74227]
[1753892064064,2.4557,3793.3,3793.2,18.215]
[1753892064363,2.98297,3793.3,3793.0,0.52729]
[1753892064557,0.965,3793.1,3793.0,18.74129]
[1753892064757,2.4557,3793.1,3793.0,18.214]
[1753892065264,3.2078,3793.9,3793.0,18.6365]
[1753892065465,0.965,3793.2,3793.1,1.53209]
[1753892065764,2.4557,3793.2,3793.1,1.53209]
[1753892066063,3.21668545,3793.2,3793.1,1.53209]
[1753892066265,3.21668545,3793.2,3793.1,2.53969]
[1753892066765,3.21668545,3793.2,3793.1,0.6964]
[1753892066962,3.21668545,3793.2,3793.1,2.0124]
[1753892068958,0.81869,3793.1,3793.0,18.214]
[1753892069164,3.25808545,3793.1,3793.0,18.214]
[1753892070165,2.4971,3793.1,3793.0,18.214]
[1753892071266,2.4971,3793.1,3793.0,20.743]
[1753892071458,1.4675,3793.4,3793.3,1.0139]
[1753892071656,3.25898088,3793.4,3793.3,2.61556]
[1753892071853,2.57906,3793.3,3793.2,0.52727]
[1753892072062,2.2057,3793.3,3792.7,3.2078]
[1753892072265,2.11781,3793.0,3792.8,18.217]
[1753892072462,2.4971,3792.9,3792.8,18.217]
[1753892072666,2.4971,3792.9,3792.8,20.746]
[1753892073770,2.4971,3792.9,3792.8,19.5451]
[1753892074064,2.4971,3792.9,3792.8,18.217]
[1753892074273,1.0062,3792.5,3792.4,2.16019]
[1753892074570,2.4971,3792.5,3792.4,20.83369]
[1753892075364,2.4971,3792.5,3792.4,20.21479]
[1753892075663,2.4971,3792.5,3792.4,20.83369]
[1753892076063,0.52738,3792.4,3792.3,3.2078]
[1753892076270,2.4971,3792.0,3791.9,2.31105]
[1753892076468,2.4971,3792.0,3791.9,1.69215]
[1753892077061,2.4971,3792.0,3791.9,2.61575]
[1753892078569,2.4971,3792.0,3791.9,3.05645]
[1753892078968,1.9128,3792.0,3791.9,21.27745]
[1753892079169,1.9128,3792.0,3791.9,20.75]
[1753892079670,1.4675,3792.0,3791.9,20.75]
[1753892080475,1.9128,3792.0,3791.9,20.75]
[1753892080664,3.02454,3792.0,3791.9,20.75]
[1753892080969,2.11794,3792.0,3791.9,19.2349]
[1753892081166,3.02454,3792.0,3791.9,20.3062]
[1753892081563,3.02454,3792.0,3791.9,18.9302]
[1753892081767,3.02454,3792.0,3791.9,18.221]
[1753892082167,2.4971,3792.0,3791.9,18.9302]
[1753892082673,2.4971,3792.0,3791.9,20.0015]
[1753892082864,2.4971,3792.0,3791.9,20.3062]
[1753892083061,2.4971,3792.0,3791.9,20.7469]
[1753892083269,0.6,3792.0,3791.9,20.7469]
[1753892083670,2.4971,3792.0,3791.9,20.7469]
[1753892084169,2.4971,3792.0,3791.9,20.3062]
[1753892084864,2.4971,3792.0,3791.9,18.5135]
[1753892085065,2.4971,3792.0,3791.9,20.3062]
[1753892086973,2.28785,3791.9,3791.8,0.1951554]
[1753892087162,6.23235,3791.9,3791.8,0.1951554]
[1753892090070,0.93372,3791.4,3791.3,18.223]
[1753892090279,1.0062,3791.0,3790.9,19.8558]
[1753892090464,2.4971,3791.0,3790.9,20.2965]
[1753892090667,0.4453,3791.3,3790.9,20.82409]
[1753892090965,1.4675,3791.3,3791.2,3.05655]
[1753892091165,2.4971,3791.3,3791.2,2.61585]
[1753892091877,2.4971,3791.3,3791.2,3.05655]
[1753892092475,3.6691,3791.9,3791.3,2.39325]
[1753892092675,1.53367,3791.8,3791.7,1.0139]
[1753892092874,1.4909,3791.8,3791.0,1.0744]
[1753892093072,2.4971,3791.2,3791.1,3.05657]
[1753892093671,1.4675,3791.2,3791.1,3.05657]
[1753892093876,0.3086,3791.2,3791.1,3.05657]
[1753892095578,0.7699,3791.2,3791.1,3.05657]
[1753892096371,1.0613,3791.2,3791.1,3.05657]
[1753892098474,1.4675,3791.2,3791.1,3.05657]
[1753892098676,1.541,3791.4,3791.3,0.52754]
[1753892098876,1.541,3791.4,3791.3,1.47634]
[1753892099072,4.6327,3791.9,3791.8,0.52747]
[1753892099277,5.6326,3791.9,3791.8,2.96527]
[1753892099581,5.0727,3791.9,3791.8,2.96527]
[1753892099775,1.8522,3792.2,3792.1,0.3759]
[1753892099979,2.4248,3792.2,3792.1,2.4378]
[1753892100477,2.4248,3792.2,3792.1,1.9899]
[1753892102282,1.981,3792.0,3791.9,2.51735]
[1753892102479,2.4248,3792.0,3791.9,2.51735]
[1753892103379,2.4248,3792.0,3791.9,1.91235]
[1753892103579,2.4248,3792.0,3791.9,2.51735]
[1753892103780,2.4248,3792.0,3791.9,2.96525]
[1753892104079,0.9811,3791.5,3791.1,3.8128]
[1753892104384,0.9811,3791.5,3791.4,0.52752]
[1753892104769,2.4248,3791.5,3791.4,0.52752]
[1753892104974,2.95235,3791.3,3791.1,0.52756]
[1753892105176,2.4248,3791.2,3791.1,0.52756]
[1753892105475,0.2784,3791.2,3791.1,2.96536]
[1753892105670,1.4249,3791.5,3791.4,1.47632]
[1753892105883,2.4248,3791.5,3791.4,2.51742]
[1753892106080,2.4248,3791.5,3791.4,1.91242]
[1753892106481,2.4248,3791.5,3791.4,1.47632]
[1753892106677,2.4248,3791.5,3791.4,0.9488]
[1753892106982,2.4248,3791.5,3791.4,0.6688]
[1753892107381,2.4248,3791.5,3791.4,1.9899]
[1753892107779,2.4248,3791.5,3791.4,2.4378]
[1753892108978,2.4248,3791.5,3791.4,1.9899]
[1753892110280,3.2078,3791.7,3791.5,0.52751]
[1753892110484,0.7222,3792.0,3791.9,2.4378]
[1753892110880,1.4249,3792.0,3791.9,2.4378]
[1753892111080,2.4248,3792.0,3791.9,2.4378]
[1753892112580,1.4211,3792.3,3792.2,0.9488]
[1753892112780,1.4211,3792.3,3792.2,1.9899]
[1753892113175,2.4248,3792.3,3792.2,0.3759]
[1753892113385,3.73519,3792.4,3791.2,1.31886]
[1753892113386,0.9811,3791.7,3791.4,1.0411]
[1753892113686,2.67392,3791.4,3791.3,0.82043]
[1753892113882,0.4438,3791.3,3791.2,0.96364]
[1753892114080,2.4248,3791.3,3791.2,0.2929]
[1753892114276,2.10013,3790.6,3790.2,3.2078]
[1753892114482,4.6289,3790.5,3790.0,1.0411]
[1753892114688,1.981,3790.1,3790.0,6.23301425]
[1753892114881,2.4248,3790.1,3790.0,6.23301425]
[1753892115189,2.4248,3790.4,3790.3,2.51758]
[1753892115389,2.4248,3790.4,3790.3,2.96548]
[1753892115793,2.4248,3790.4,3790.3,1.3849]
[1753892116085,3.2078,3790.9,3790.2,1.91258]
[1753892116086,2.4248,3790.3,3790.2,1.91258]
[1753892116590,2.4248,3790.3,3790.2,2.51758]
[1753892117284,2.4248,3790.3,3789.9,3.2078]
[1753892117490,2.4248,3789.9,3789.8,0.19525839]
[1753892118682,2.95253,3789.9,3789.8,0.19525839]
[1753892120191,1.7221,3790.2,3790.1,2.9655]